[Event "Romanian-ch Open 2022"]
[Site "Eforie Nord"]
[Date "2022.02.20"]
[Round "1.19"]
[White "Prelipcean, Eric-Matei"]
[Black "Secheres, Adrian-Simion"]
[Result "1/2-1/2"]
[ECO "C95"]
[WhiteElo "1935"]
[BlackElo "2363"]
[Annotator "NA"]
[PlyCount "150"]
[EventDate "2022.02.20"]
[EventType "swiss"]
[EventCountry "ROU"]
[SourceTitle "playchess.com"]
[Source "ChessBase"]
[SourceQuality "1"]
[TimeControl "40/5400+30:900+30"]

1. e4 {[%emt 0:00:08]} e5 {[%emt 0:00:24]} 2. Nf3 {[%emt 0:00:25]} Nc6 {[%emt 0:00:21]} 3. Bb5 {[%emt 0:00:17]} a6 {[%emt 0:00:25]} 4. Ba4 {[%emt 0:00:19]} Nf6 {[%emt 0:00:19]} 5. O-O {[%emt 0:00:18]} Be7 {[%emt 0:00:17]} 6. Re1 {[%emt 0:00:20]} b5 {[%emt 0:00:21]} 7. Bb3 {[%emt 0:00:11]} d6 {[%emt 0:00:20]} 8. c3 {[%emt 0:00:48]} O-O {[%emt 0:00:24]} 9. h3 {[%emt 0:00:12]} Nb8 {[%emt 0:00:34]} 10. d4 {[%emt 0:01:04]} Nbd7 {[%emt 0:00:13]} 11. Nbd2 {[%emt 0:01:15]} Bb7 {[%emt 0:00:18]} 12. Bc2 {[%emt 0:04:02]} Re8 {[%emt 0:00:17]} 13. Nf1 {[%emt 0:00:12]} Bf8 {[%emt 0:00:17]} 14. Ng3 {[%emt 0:00:41]} g6 {[%emt 0:00:17]} 15. a4 {[%emt 0:02:46]} Nb6 {[%emt 0:00:43]} 16. a5 {[%emt 0:01:39]} Nbd7 {[%emt 0:00:11]} 17. b3 {[%emt 0:02:03]} d5 {[%emt 0:15:27]} 18. exd5 {[%emt 0:21:15]} Nxd5 {[%emt 0:10:17]} 19. Bb2 {[%emt 0:09:46]} exd4 {[%emt 0:03:20]} 20. Nxd4 {[%emt 0:00:39]} (20. Rxe8 $15 Qxe8 21. c4 (21. Qxd4 Bg7 $17)) 20... Bg7 {[%emt 0:04:10]} ({Black should try} 20... c5 $17 21. Rxe8 Qxe8) 21. Rxe8+ {[%emt 0:13:05]} Qxe8 {[%emt 0:00:19]} 22. Qd2 $1 {[%emt 0:00:13]} c5 {[%emt 0:11:22]} 23. Nde2 {[%emt 0:01:04]} Rd8 {[%emt 0:09:22]} 24. Rd1 {[%emt 0:04:42]} Nf8 {[%emt 0:02:57]} 25. Be4 {[%emt 0:06:31]} Rd7 {[%emt 0:01:46]} 26. Qc1 {[%emt 0:12:41]} c4 {[%emt 0:08:31]} 27. b4 {[%emt 0:10:53]} Ne6 {[%emt 0:05:58]} 28. Bxd5 {[%emt 0:03:41]} Qd8 {[%emt 0:04:45]} (28... Bxd5 $17 29. Nf4 Nxf4 30. Qxf4 Bc6 31. Rxd7 Qxd7 32. Qb8+ Bf8) 29. Qc2 {[%emt 0:02:04]} Bxd5 {[%emt 0:02:40]} 30. Bc1 {[%emt 0:01:03]} f5 {[%emt 0:02:14]} 31. Nf4 {[%emt 0:00:10]} Nc7 {[%emt 0:02:23]} 32. Be3 {[%emt 0:00:56]} Bc6 {[%emt 0:02:27]} (32... Bf7 $15 33. Rxd7 Qxd7) 33. Rxd7 {[%emt 0:00:49]} Qxd7 {[%emt 0:00:02]} 34. Nfe2 {[%emt 0:00:02]} Ne6 {[%emt 0:05:19]} (34... Qd3 $17 35. Qxd3 cxd3) 35. Nf4 {[%emt 0:00:58]} Nc7 {[%emt 0:04:14]} 36. Nge2 {[%emt 0:00:43]} g5 {[%emt 0:03:16]} 37. Nh5 {[%emt 0:00:06]} Qd3 {[%emt 0:00:12]} 38. Qxd3 {[%emt 0:00:53]} cxd3 {[%emt 0:00:04]} 39. Nc1 {[%emt 0:00:04]} Bxc3 {[%emt 0:00:51]} 40. Nxd3 {[%emt 0:00:00]} f4 {[%emt 0:00:00]} 41. Bb6 {[%emt 0:01:41]} Nd5 {[%emt 0:01:39]} 42. Bd8 {[%emt 0:01:57]} Be8 {[%emt 0:03:00]} ({Don't go for} 42... Nxb4 $2 43. Nxb4 Bxb4 44. h4) 43. g4 {[%emt 0:00:23]} h6 {[%emt 0:01:23]} ({Worse is} 43... Nxb4 44. Nxb4 Bxb4 45. Nf6+ Kf7 46. Nxh7 $17) 44. h4 $19 {[%emt 0:01:25]} Bxh5 {[%emt 0:02:44]} 45. gxh5 {[%emt 0:00:02]} gxh4 {[%emt 0:03:56]} 46. Bxh4 {[%emt 0:01:09]} Bxb4 {[%emt 0:00:32]} 47. Nxb4 {[%emt 0:01:03]} Nxb4 {[%emt 0:00:02]} 48. Kg2 {[%emt 0:00:25]} Nd5 {[%emt 0:02:21]} 49. Kf3 {[%emt 0:00:46]} b4 {[%emt 0:01:13]} 50. Ke2 {[%emt 0:00:08]} b3 {[%emt 0:00:49]} 51. Kd2 {[%emt 0:00:15]} Kf7 {[%emt 0:00:41]} 52. Kc1 {[%emt 0:00:21]} Nf6 {[%emt 0:01:20]} 53. Kb2 {[%emt 0:00:10]} Nxh5 {[%emt 0:00:16]} 54. Kxb3 {[%emt 0:00:08]} Ke6 {[%emt 0:01:26]} 55. Kc4 {[%emt 0:00:17]} Ng7 {[%emt 0:03:14]} 56. f3 {[%emt 0:01:05]} Nf5 {[%emt 0:00:11]} 57. Bf2 {[%emt 0:00:02]} Kd6 {[%emt 0:00:25]} 58. Ba7 {[%emt 0:00:34]} Nh4 {[%emt 0:01:07]} 59. Bb8+ {[%emt 0:00:13]} Kc6 {[%emt 0:00:01]} 60. Bxf4 {[%emt 0:01:06]} h5 {[%emt 0:00:01]} 61. Kd4 {[%emt 0:01:03]} Nxf3+ {[%emt 0:00:05]} 62. Ke4 {[%emt 0:00:12]} Ne1 {[%emt 0:00:30]} 63. Bd2 {[%emt 0:00:27]} Nc2 {[%emt 0:00:21]} 64. Kf4 {[%emt 0:00:25]} Kb5 {[%emt 0:00:22]} 65. Kg5 {[%emt 0:00:06]} Nb4 {[%emt 0:00:05]} 66. Kxh5 {[%emt 0:00:04]} Kxa5 {[%emt 0:00:04]} 67. Kg4 {[%emt 0:00:17]} Ka4 {[%emt 0:00:55]} 68. Kf4 {[%emt 0:00:34]} Kb3 {[%emt 0:00:18]} 69. Ke3 {[%emt 0:00:57]} a5 {[%emt 0:00:27]} 70. Ke2 {[%emt 0:00:24]} a4 {[%emt 0:01:10]} 71. Bxb4 {[%emt 0:00:40]} Kxb4 {[%emt 0:00:05]} 72. Kd1 {[%emt 0:00:05]} Kb3 {[%emt 0:00:05]} 73. Kc1 {[%emt 0:00:06]} a3 {[%emt 0:00:03]} 74. Kb1 {[%emt 0:00:05]} a2+ {[%emt 0:00:03]} 75. Ka1 {[%emt 0:00:04]} Ka3 {[%emt 0:00:04]} 1/2-1/2

[Event "Romanian-ch Open 2022"]
[Site "Eforie Nord"]
[Date "2022.02.20"]
[Round "1.20"]
[White "Manea, Alexandru"]
[Black "Ciobanu, Bogdan"]
[Result "1-0"]
[ECO "D30"]
[WhiteElo "2355"]
[BlackElo "1933"]
[Annotator "ChessBase"]
[PlyCount "155"]
[EventDate "2022.02.20"]
[EventType "swiss"]
[EventCountry "ROU"]
[SourceTitle "playchess.com"]
[Source "ChessBase"]
[SourceQuality "1"]
[TimeControl "40/5400+30:900+30"]

1. d4 {[%emt 0:00:06]} Nf6 {[%emt 0:00:10]} 2. Nf3 {[%emt 0:00:11]} e6 {[%emt 0:00:25]} 3. g3 {[%emt 0:00:26]} d5 {[%emt 0:01:06]} 4. Bg2 {[%emt 0:00:10]} c5 {[%emt 0:00:36]} 5. c4 {[%emt 0:00:13]} Nc6 {[%emt 0:00:28]} 6. cxd5 {[%emt 0:00:08]} exd5 {[%emt 0:00:07]} 7. O-O {[%emt 0:00:06]} Be7 {[%emt 0:00:07]} 8. dxc5 {[%emt 0:00:25]} Bxc5 {[%emt 0:00:07]} 9. a3 {[%emt 0:00:05]} a6 {[%emt 0:12:12]} 10. b4 {[%emt 0:03:12]} Ba7 {[%emt 0:00:10]} 11. Bb2 {[%emt 0:00:09]} O-O {[%emt 0:00:35]} 12. Nbd2 {[%emt 0:00:11]} Re8 {[%emt 0:00:39]} 13. Nb3 {[%emt 0:01:11]} Bg4 {[%emt 0:08:36]} 14. Rc1 {[%emt 0:05:03]} Qe7 {[%emt 0:07:10]} 15. e3 {[%emt 0:12:20]} Rad8 {[%emt 0:08:55]} 16. Qc2 {[%emt 0:07:48]} Rc8 {[%emt 0:33:59]} 17. Qd3 {[%emt 0:01:58]} Ne4 {[%emt 0:15:39]} 18. Nbd4 {[%emt 0:01:26]} Bxd4 {[%emt 0:04:05]} 19. Bxd4 {[%emt 0:00:54]} Bxf3 {[%emt 0:01:16]} 20. Bxf3 {[%emt 0:00:26]} Ne5 {[%emt 0:00:37]} 21. Bxe5 {[%emt 0:02:11]} Qxe5 {[%emt 0:00:09]} 22. Rxc8 {[%emt 0:03:49]} Rxc8 {[%emt 0:00:06]} 23. Rd1 {[%emt 0:00:10]} Nc3 {[%emt 0:03:30]} 24. Rd2 {[%emt 0:00:16]} Rd8 {[%emt 0:00:48]} 25. e4 {[%emt 0:05:52]} g6 {[%emt 0:00:52]} 26. exd5 {[%emt 0:01:04]} Nb5 {[%emt 0:00:19]} 27. Kg2 {[%emt 0:02:46]} Nd6 {[%emt 0:00:37]} 28. Rc2 {[%emt 0:02:33]} Rd7 {[%emt 0:00:32]} 29. Re2 {[%emt 0:02:43]} Qf6 {[%emt 0:00:13]} 30. Rc2 {[%emt 0:00:43]} Qe5 {[%emt 0:00:14]} 31. h4 {[%emt 0:00:08]} h5 {[%emt 0:01:02]} 32. Rc5 {[%emt 0:01:40]} Kg7 {[%emt 0:00:19]} 33. Qd2 {[%emt 0:07:39]} Re7 {[%emt 0:00:19]} 34. Rc1 {[%emt 0:00:48]} Qf6 {[%emt 0:00:46]} 35. a4 {[%emt 0:02:16]} Qe5 {[%emt 0:00:39]} 36. Qc2 {[%emt 0:02:00]} Qd4 {[%emt 0:00:25]} 37. Qc5 {[%emt 0:00:33]} Qe5 {[%emt 0:00:06]} 38. Rc2 {[%emt 0:02:22]} Qf6 {[%emt 0:00:24]} 39. b5 {[%emt 0:01:53]} axb5 {[%emt 0:00:11]} 40. axb5 {[%emt 0:00:00]} Re1 {[%emt 0:00:00]} 41. Qb4 {[%emt 0:02:34]} Re7 {[%emt 0:12:46]} 42. b6 {[%emt 0:00:24]} Qe5 {[%emt 0:00:30]} 43. Rc7 {[%emt 0:02:03]} Kf6 {[%emt 0:01:09]} 44. Qc5 {[%emt 0:02:41]} Kg7 {[%emt 0:01:13]} 45. Qc1 {[%emt 0:00:18]} Qf6 {[%emt 0:00:32]} 46. Qa3 {[%emt 0:03:16]} Qe5 {[%emt 0:00:18]} 47. Qb4 {[%emt 0:01:05]} Kf6 {[%emt 0:00:36]} 48. Rc2 {[%emt 0:00:25]} Kg7 {[%emt 0:00:47]} 49. Ra2 {[%emt 0:01:48]} Re8 {[%emt 0:01:07]} 50. Rc2 {[%emt 0:04:14]} Re7 {[%emt 0:00:18]} 51. Qd2 {[%emt 0:00:12]} Qf6 {[%emt 0:01:05]} 52. Rc7 {[%emt 0:01:01]} Qe5 {[%emt 0:00:54]} 53. Qd3 {[%emt 0:01:25]} Qf6 {[%emt 0:00:24]} 54. Rc3 {[%emt 0:01:32]} Re8 {[%emt 0:00:47]} 55. Rc1 {[%emt 0:00:59]} Re7 {[%emt 0:00:28]} 56. Rb1 {[%emt 0:00:06]} Re8 {[%emt 0:00:29]} 57. Rb4 {[%emt 0:02:08]} Ra8 {[%emt 0:00:48]} 58. Qd2 {[%emt 0:03:15]} Qe5 {[%emt 0:00:46]} 59. Rb1 {[%emt 0:05:24]} Ra1 {[%emt 0:00:34]} 60. Rb3 {[%emt 0:04:03]} Ra8 {[%emt 0:00:32]} 61. Rc3 {[%emt 0:04:06]} Re8 {[%emt 0:00:22]} 62. Rc1 {[%emt 0:00:34]} Qf6 {[%emt 0:00:13]} 63. Rc7 {[%emt 0:00:32]} Re7 {[%emt 0:00:23]} 64. Qc1 {[%emt 0:00:32]} Ne8 {[%emt 0:01:05]} 65. d6 {[%emt 0:04:00]} Nxd6 {[%emt 0:00:24]} 66. Qc5 {[%emt 0:04:38]} Re5 {[%emt 0:00:53]} 67. Qc2 {[%emt 0:03:27]} Re7 {[%emt 0:00:13]} 68. Qd3 {[%emt 0:00:58]} Qe5 {[%emt 0:00:22]} 69. Qd2 {[%emt 0:01:20]} Qf6 {[%emt 0:00:21]} 70. Rc1 {[%emt 0:01:47]} Qe5 {[%emt 0:00:26]} 71. Rd1 {[%emt 0:00:50]} Nc8 {[%emt 0:01:03]} 72. Qd8 {[%emt 0:00:16]} Re8 {[%emt 0:00:20]} 73. Qc7 {[%emt 0:00:11]} Qxc7 {[%emt 0:00:48]} 74. bxc7 {[%emt 0:00:01]} Re7 {[%emt 0:00:21]} 75. Rc1 {[%emt 0:00:09]} b6 {[%emt 0:00:08]} 76. Bb7 {[%emt 0:00:06]} Re8 {[%emt 0:00:08]} 77. Rd1 {[%emt 0:00:17]} Kf8 {[%emt 0:00:16]} 78. Bxc8 {[%emt 0:00:22]} 1-0

[Event "Romanian-ch Open 2022"]
[Site "Eforie Nord"]
[Date "2022.02.20"]
[Round "1.21"]
[White "Capragiu, Matei-Stefan"]
[Black "Vajda, Albert"]
[Result "1/2-1/2"]
[ECO "E11"]
[WhiteElo "1902"]
[BlackElo "2351"]
[Annotator "NA"]
[PlyCount "81"]
[EventDate "2022.02.20"]
[EventType "swiss"]
[EventCountry "ROU"]
[SourceTitle "playchess.com"]
[Source "ChessBase"]
[SourceQuality "1"]
[TimeControl "40/5400+30:900+30"]

{[%evp 18,82,3,-13,60,52,73,67,84,52,32767,41,41,20,18,32767,32767,29,23,-7,-8,0,-17,32767,32767,32767,32767,32767,32767,32767,32767,-2,32767,0,25,32767,32767,32767,32767,0,0,32767,52,35,32767,15,32767,14,11,20,32767,32767,32767,32767,22,32767,11,11,32767,74,32767,32767,88,83,32767,0,151]} 1. d4 {[%emt 0:00:05]} Nf6 {[%emt 0:00:12]} 2. c4 {[%emt 0:00:08]} e6 {[%emt 0:00:26]} 3. Nf3 {[%emt 0:00:08]} Bb4+ {[%emt 0:00:34]} 4. Bd2 {[%emt 0:00:56]} c5 {[%emt 0:00:24]} 5. e3 {[%emt 0:00:49]} O-O {[%emt 0:01:20]} 6. Bd3 {[%emt 0:01:21]} Nc6 {[%emt 0:03:11]} 7. O-O {[%emt 0:01:53]} Bxd2 {[%emt 0:06:47]} 8. Qxd2 {[%emt 0:03:50]} cxd4 {[%emt 0:00:51]} 9. exd4 {[%emt 0:00:34]} d5 {[%emt 0:00:58]} 10. Nc3 {[%emt 0:02:50]} Nb4 {[%emt 0:05:58]} (10... dxc4 $1 $11 11. Bxc4 b6) 11. c5 $1 {[%emt 0:06:01]} Nxd3 {[%emt 0:11:35]} 12. Qxd3 {[%emt 0:00:51]} a5 {[%emt 0:00:07]} 13. Rfe1 {[%emt 0:04:39]} b6 {[%emt 0:05:02] [#]} 14. Na4 {[%emt 0:07:46]} (14. a3 $1 $16) 14... Ba6 {[%emt 0:06:16]} 15. Qc2 {[%emt 0:02:36]} bxc5 {[%emt 0:11:00]} 16. Nxc5 {[%emt 0:03:11]} Qc7 {[%emt 0:03:34]} 17. Rac1 {[%emt 0:01:35]} Qf4 {[%emt 0:04:46]} 18. Qd2 {[%emt 0:05:18]} (18. Re3 $14) 18... Qxd2 {[%emt 0:00:49]} 19. Nxd2 {[%emt 0:00:07]} Rfb8 {[%emt 0:02:21]} 20. b3 {[%emt 0:01:00]} Bb5 {[%emt 0:00:10]} 21. Nf3 {[%emt 0:06:10]} Be8 {[%emt 0:00:51]} 22. g3 {[%emt 0:01:47]} Kf8 {[%emt 0:01:17]} 23. Ne5 {[%emt 0:00:33]} Rb4 {[%emt 0:02:50]} 24. Red1 {[%emt 0:01:23]} Ke7 {[%emt 0:00:20]} 25. f4 {[%emt 0:01:13]} Kd6 {[%emt 0:00:09]} 26. Kf2 {[%emt 0:00:47]} Ng8 {[%emt 0:00:06]} 27. Ke3 {[%emt 0:02:20]} Nh6 {[%emt 0:07:47]} 28. g4 {[%emt 0:07:50]} f6 {[%emt 0:01:18]} 29. Ned3 {[%emt 0:00:36]} Rbb8 {[%emt 0:00:22]} (29... Nxg4+ $11 30. Kf3 Nh6) 30. h3 {[%emt 0:00:23]} Ra7 {[%emt 0:01:00]} 31. Kf3 {[%emt 0:37:20]} Bf7 {[%emt 0:06:51]} 32. Rc3 {[%emt 0:00:00]} Ng8 {[%emt 0:00:28]} 33. Rdc1 {[%emt 0:00:00]} h5 {[%emt 0:01:15]} 34. R1c2 {[%emt 0:00:00]} Re8 {[%emt 0:02:02]} 35. Na4 {[%emt 0:00:00]} Ne7 {[%emt 0:01:58]} 36. Nb6 {[%emt 0:00:00]} hxg4+ {[%emt 0:00:54]} 37. hxg4 {[%emt 0:00:00]} Rb8 {[%emt 0:07:10] [#]} 38. Nc8+ $1 {[%emt 0:00:00]} Nxc8 {[%emt 0:00:13]} 39. Rxc8 {[%emt 0:00:00]} Rxc8 {[%emt 0:00:08]} 40. Rxc8 {[%emt 0:00:00]} Bg6 {[%emt 0:00:00]} 41. Ke3 {[%emt 0:20:00]} ({White must play} 41. Nc5 $16) 1/2-1/2

[Event "Romanian-ch Open 2022"]
[Site "Eforie Nord"]
[Date "2022.02.20"]
[Round "1.22"]
[White "Antonica, Dragos-Andrei"]
[Black "Mazilu, Stefan-Fabian"]
[Result "1-0"]
[ECO "A18"]
[WhiteElo "2350"]
[BlackElo "1886"]
[Annotator "ChessBase"]
[PlyCount "85"]
[EventDate "2022.02.20"]
[EventType "swiss"]
[EventCountry "ROU"]
[SourceTitle "playchess.com"]
[Source "ChessBase"]
[SourceQuality "1"]
[TimeControl "40/5400+30:900+30"]

1. c4 {[%emt 0:00:05]} Nf6 {[%emt 0:00:07]} 2. Nc3 {[%emt 0:00:04]} e6 {[%emt 0:00:06]} 3. e4 {[%emt 0:00:46]} d5 {[%emt 0:04:49]} 4. e5 {[%emt 0:00:53]} Nfd7 {[%emt 0:06:15]} 5. cxd5 {[%emt 0:07:19]} Nxe5 {[%emt 0:25:14]} 6. d4 {[%emt 0:08:02]} Ng6 {[%emt 0:04:13]} 7. dxe6 {[%emt 0:10:19]} Bxe6 {[%emt 0:03:11]} 8. d5 {[%emt 0:00:56]} Bc8 {[%emt 0:04:14]} 9. Nf3 {[%emt 0:03:06]} Be7 {[%emt 0:00:51]} 10. Be2 {[%emt 0:03:19]} O-O {[%emt 0:00:40]} 11. O-O {[%emt 0:00:34]} Nd7 {[%emt 0:02:13]} 12. Be3 {[%emt 0:04:56]} Nf6 {[%emt 0:02:34]} 13. h3 {[%emt 0:08:26]} a6 {[%emt 0:02:14]} 14. a4 {[%emt 0:08:00]} b6 {[%emt 0:04:53]} 15. Qb3 {[%emt 0:08:29]} Bb7 {[%emt 0:01:33]} 16. Rfd1 {[%emt 0:04:40]} Qd7 {[%emt 0:05:45]} 17. Bd4 {[%emt 0:08:33]} Rad8 {[%emt 0:04:32]} 18. Ne5 {[%emt 0:03:38]} Nxe5 {[%emt 0:02:17]} 19. Bxe5 {[%emt 0:00:03]} Qc8 {[%emt 0:08:13]} 20. Rac1 {[%emt 0:02:06]} Nd7 {[%emt 0:01:58]} 21. Bg3 {[%emt 0:06:43]} Nc5 {[%emt 0:01:12]} 22. Qc2 {[%emt 0:04:15]} a5 {[%emt 0:01:21]} 23. Bf3 {[%emt 0:01:40]} f5 {[%emt 0:03:03]} 24. Be5 {[%emt 0:01:14]} Bf6 {[%emt 0:02:33]} 25. Re1 {[%emt 0:01:31]} Ba6 {[%emt 0:01:44]} 26. Rcd1 {[%emt 0:01:09]} Bc4 {[%emt 0:01:47]} 27. Bxf6 {[%emt 0:01:30]} Rxf6 {[%emt 0:00:15]} 28. Rd4 {[%emt 0:00:05]} Ba6 {[%emt 0:01:00]} 29. Qb1 {[%emt 0:01:25]} Rff8 {[%emt 0:02:12]} 30. Red1 {[%emt 0:00:33]} Rd6 {[%emt 0:00:30]} 31. b4 {[%emt 0:00:21]} axb4 {[%emt 0:01:10]} 32. Qxb4 {[%emt 0:00:07]} Nd7 {[%emt 0:01:28]} 33. a5 {[%emt 0:01:01]} bxa5 {[%emt 0:00:28]} 34. Qxa5 {[%emt 0:00:22]} Ne5 {[%emt 0:00:16]} 35. Be2 {[%emt 0:00:52]} f4 {[%emt 0:02:15]} 36. Re4 {[%emt 0:00:48]} f3 {[%emt 0:00:46]} 37. Rxe5 {[%emt 0:00:34]} fxe2 {[%emt 0:00:15]} 38. Nxe2 {[%emt 0:00:15]} Qd8 {[%emt 0:00:38]} 39. Ng3 {[%emt 0:00:41]} Bb7 {[%emt 0:00:42]} 40. Ne4 {[%emt 0:00:00]} Rd7 {[%emt 0:00:00]} 41. Nc5 {[%emt 0:03:50]} Rxd5 {[%emt 0:02:46]} 42. Qa2 {[%emt 0:02:14]} Qa8 {[%emt 0:00:37]} 43. Qb3 {[%emt 0:00:19]} 1-0

[Event "Romanian-ch Open 2022"]
[Site "Eforie Nord"]
[Date "2022.02.20"]
[Round "1.23"]
[White "Tudor, Henry Edward"]
[Black "Bonte, Andrei-Mihai"]
[Result "1/2-1/2"]
[ECO "E32"]
[WhiteElo "1879"]
[BlackElo "2349"]
[Annotator "NA"]
[PlyCount "95"]
[EventDate "2022.02.20"]
[EventType "swiss"]
[EventCountry "ROU"]
[SourceTitle "playchess.com"]
[Source "ChessBase"]
[SourceQuality "1"]
[TimeControl "40/5400+30:900+30"]

1. d4 {[%emt 0:31:26]} Nf6 {[%emt 0:20:31]} 2. c4 {[%emt 0:00:30]} e6 {[%emt 0:00:30]} 3. Nc3 {[%emt 0:00:30]} Bb4 {[%emt 0:00:30]} 4. Qc2 {[%emt 0:00:30]} O-O {[%emt 0:00:30]} 5. e4 {[%emt 0:00:30]} d6 {[%emt 0:00:30]} 6. Bd3 {[%emt 0:00:30]} e5 {[%emt 0:00:30]} 7. d5 {[%emt 0:00:30]} a5 {[%emt 0:00:30]} 8. a3 {[%emt 0:00:30]} Bc5 {[%emt 0:00:30]} 9. f3 {[%emt 0:00:30]} Nh5 {[%emt 0:00:30]} 10. g3 {[%emt 0:00:30]} Na6 {[%emt 0:00:30]} 11. Qg2 {[%emt 0:00:30]} (11. Bd2 $11 {keeps the balance.}) 11... c6 {[%emt 0:00:30]} 12. Nge2 {[%emt 0:00:30]} Ba7 {[%emt 0:00:30]} 13. h4 {[%emt 0:00:30]} Nc5 {[%emt 0:00:30]} 14. Bc2 {[%emt 0:00:30]} Qb6 {[%emt 0:00:30]} 15. g4 {[%emt 0:00:30]} Nf4 {[%emt 0:00:30]} (15... Nf6 $11) 16. Nxf4 {[%emt 0:00:30]} exf4 {[%emt 0:00:30]} 17. Rb1 {[%emt 0:00:30]} Nd7 {[%emt 0:00:30]} 18. Bxf4 {[%emt 0:00:30]} Ne5 {[%emt 0:00:30]} 19. b3 {[%emt 0:00:30]} Qd4 $1 {[%emt 0:00:30]} 20. Nd1 {[%emt 0:00:30]} Nd3+ {[%emt 0:00:30]} (20... Qc5 $1 $11) 21. Bxd3 {[%emt 0:00:30]} Qxd3 {[%emt 0:00:30]} 22. Rb2 {[%emt 0:00:30]} cxd5 {[%emt 0:00:30]} 23. cxd5 {[%emt 0:00:30]} Bc5 {[%emt 0:00:30]} 24. b4 {[%emt 0:00:30]} axb4 {[%emt 0:00:30]} 25. axb4 {[%emt 0:00:30]} Ra1 {[%emt 0:00:30]} 26. Qe2 {[%emt 0:00:30]} Qc3+ {[%emt 0:00:30]} 27. Kf1 {[%emt 0:00:30]} Rxd1+ {[%emt 0:00:30]} 28. Qxd1 {[%emt 0:00:30]} Qxb2 {[%emt 0:00:30]} 29. bxc5 {[%emt 0:00:30]} Bd7 {[%emt 0:00:30]} 30. Qd2 {[%emt 0:00:30]} Qb5+ {[%emt 0:00:30]} 31. Qe2 {[%emt 0:00:30]} Qb3 {[%emt 0:00:30]} 32. Kf2 {[%emt 0:00:30]} Ra8 {[%emt 0:00:30]} 33. Rd1 {[%emt 0:00:30]} ({Reject} 33. cxd6 Ra2 34. Bd2 h5 35. gxh5 (35. Qe3 Qb4 $17) 35... Qb6+ 36. Kg2 Qd4 $11) (33. Kg3 $14) 33... dxc5 {[%emt 0:00:30]} 34. Rd2 {[%emt 0:00:30]} b5 {[%emt 0:00:30]} 35. Rb2 {[%emt 0:00:30]} (35. Qe3 $5 {[%cal Re3b3]} Qb1 36. e5 $14) 35... Qa3 {[%emt 0:00:30]} 36. Bd6 {[%emt 0:00:30]} Qc3 {[%emt 0:00:30]} 37. Rc2 {[%emt 0:00:30]} Qf6 {[%emt 0:00:30]} 38. Bg3 {[%emt 0:00:30]} c4 {[%emt 0:00:30]} 39. e5 {[%emt 0:00:30]} Qb6+ {[%emt 0:00:30]} 40. Qe3 {[%emt 0:00:30]} Qb7 $11 {[%emt 0:00:30]} (40... Qg6 $5 {[%cal Rg6c2]} 41. Re2 h5 $11) 41. e6 {[%emt 0:15:30]} fxe6 {[%emt 0:15:30]} 42. dxe6 {[%emt 0:00:30]} Be8 {[%emt 0:00:30]} 43. Bd6 {[%emt 0:00:30]} Bg6 {[%emt 0:00:30]} 44. Rd2 {[%emt 0:00:30]} h6 {[%emt 0:00:30]} 45. h5 {[%emt 0:00:30]} Bd3 {[%emt 0:00:30]} 46. e7 {[%emt 0:00:30]} Qc6 {[%emt 0:00:30]} 47. Qf4 {[%emt 0:00:30]} Kh7 {[%emt 0:00:30]} 48. Rxd3 {[%emt 0:00:30]} 1/2-1/2

[Event "Romanian-ch Open 2022"]
[Site "Eforie Nord"]
[Date "2022.02.20"]
[Round "1.25"]
[White "Craciun, Sasha-Matei"]
[Black "Stepanencu, Nicodim-Cosmin"]
[Result "1-0"]
[ECO "B66"]
[WhiteElo "1871"]
[BlackElo "2334"]
[Annotator "NA"]
[PlyCount "113"]
[EventDate "2022.02.20"]
[EventType "swiss"]
[EventCountry "ROU"]
[SourceTitle "playchess.com"]
[Source "ChessBase"]
[SourceQuality "1"]
[TimeControl "40/5400+30:900+30"]

1. e4 {[%emt 0:00:03]} c5 {[%emt 0:00:07]} 2. Nf3 {[%emt 0:00:12]} d6 {[%emt 0:00:06]} 3. d4 {[%emt 0:00:11]} cxd4 {[%emt 0:00:05]} 4. Nxd4 {[%emt 0:00:09]} Nf6 {[%emt 0:00:06]} 5. Nc3 {[%emt 0:00:07]} Nc6 {[%emt 0:00:41]} 6. Bg5 {[%emt 0:00:42]} e6 {[%emt 0:00:42]} 7. Qd2 {[%emt 0:01:55]} a6 {[%emt 0:06:37]} 8. Be2 {[%emt 0:04:16]} Bd7 {[%emt 0:13:09]} 9. O-O {[%emt 0:03:36]} b5 {[%emt 0:09:21]} 10. a3 {[%emt 0:05:49]} Rc8 {[%emt 0:04:18]} 11. Kh1 {[%emt 0:03:03]} (11. Nb3 $14 {was preferrable.}) 11... h6 {[%emt 0:07:13]} 12. Be3 {[%emt 0:04:50]} Ne5 {[%emt 0:00:12]} 13. f4 {[%emt 0:02:57]} Nc4 {[%emt 0:02:26]} 14. Bxc4 {[%emt 0:01:55]} Rxc4 {[%emt 0:00:34]} 15. Rae1 {[%emt 0:05:08]} Ng4 {[%emt 0:10:42]} 16. Bg1 {[%emt 0:02:06]} Be7 {[%emt 0:01:02]} 17. e5 {[%emt 0:08:10]} (17. a4 $14) 17... Qc7 {[%emt 0:20:32] [#]} (17... dxe5 $14 18. fxe5 Qc7) 18. Nf5 $1 {[%emt 0:20:28]} dxe5 {[%emt 0:03:12]} 19. Nxe7 {[%emt 0:00:42]} Kxe7 {[%emt 0:00:02]} 20. fxe5 {[%emt 0:00:14]} Bc6 {[%emt 0:03:11]} 21. h3 {[%emt 0:07:10]} h5 {[%emt 0:04:44]} 22. Nd1 $2 {[%emt 0:08:08]} ({Inferior is} 22. hxg4 hxg4+ 23. Bh2 g3 24. Qg5+ Kf8 25. Qxg3 Rch4 $17) (22. Qg5+ $16 Kf8 23. Rd1) 22... Qd7 {[%emt 0:07:50]} 23. Qg5+ {[%emt 0:05:49]} Kf8 {[%emt 0:00:01]} 24. Re2 {[%emt 0:01:00]} Rh6 {[%emt 0:02:30]} 25. Rd2 {[%emt 0:01:25]} Bd5 {[%emt 0:00:21]} 26. b3 {[%emt 0:00:56]} Re4 {[%emt 0:00:24]} 27. Bc5+ {[%emt 0:04:09]} Kg8 {[%emt 0:00:11]} 28. hxg4 {[%emt 0:00:40]} Rg6 {[%emt 0:00:36]} (28... hxg4+ {was called for.} 29. Kg1 Qc7) 29. Qe7 {[%emt 0:00:12]} Qxe7 {[%emt 0:03:13]} 30. Bxe7 {[%emt 0:00:02]} hxg4 {[%emt 0:00:49]} 31. Nc3 {[%emt 0:03:28]} Rxe5 {[%emt 0:00:02]} 32. Nxd5 exd5 {[%emt 0:00:01]} 33. Bb4 {[%emt 0:01:46]} g3 {[%emt 0:00:18]} 34. Kg1 {[%emt 0:00:45]} Rc6 {[%emt 0:00:57]} 35. Rd3 {[%emt 0:01:11]} Rxc2 {[%emt 0:00:54]} 36. Rxg3 {[%emt 0:00:07]} d4 {[%emt 0:00:26]} 37. Rd1 {[%emt 0:00:24]} Re4 {[%emt 0:00:42]} 38. Rgd3 {[%emt 0:00:22]} Rg4 {[%emt 0:00:40]} 39. R3d2 {[%emt 0:00:13]} d3 {[%emt 0:00:31]} 40. Rxc2 {[%emt 0:00:00]} dxc2 {[%emt 0:00:00]} 41. Rc1 {[%emt 0:00:30]} Rg3 {[%emt 0:00:22]} 42. Rxc2 {[%emt 0:00:02]} Rxb3 {[%emt 0:00:06]} 43. Rc8+ {[%emt 0:00:05]} Kh7 {[%emt 0:00:01]} 44. Ra8 {[%emt 0:00:08]} g5 {[%emt 0:01:46]} 45. Rxa6 {[%emt 0:00:08]} g4 {[%emt 0:00:01]} 46. Kf2 {[%emt 0:02:57]} Kg7 {[%emt 0:02:06]} 47. Rb6 {[%emt 0:00:36]} f5 {[%emt 0:00:53]} 48. Rxb5 {[%emt 0:00:08]} Kg6 {[%emt 0:00:01]} 49. Rb6+ {[%emt 0:00:52]} Kh5 {[%emt 0:00:02]} 50. Bc5 {[%emt 0:00:35]} g3+ {[%emt 0:00:37]} 51. Ke2 {[%emt 0:00:18]} Rc3 {[%emt 0:00:02]} 52. Be3 {[%emt 0:01:05]} f4 {[%emt 0:02:28]} 53. Bxf4 $18 {[%emt 0:00:17]} Rxa3 {[%emt 0:01:54]} 54. Be3 {[%emt 0:00:13]} Kg4 {[%emt 0:00:47]} 55. Rg6+ {[%emt 0:00:14]} Kh4 {[%emt 0:00:20]} 56. Kf3 {[%emt 0:00:15]} Rb3 {[%emt 0:00:17]} 57. Rh6# {[%emt 0:21:17]} 1-0